bitfinex-derivatives/quotes_ETHF0:USTF0_20210111
["timestamp","ask_amount","ask_price","bid_price","bid_amount"]
[1610360935195,1.6157,1117.1,1116.0,3.75153624]
[1610360935398,1.6157,1117.1,1116.7,4.00959]
[1610360935796,57.36722111,1118.6,1116.7,4.00959]
[1610360935997,59.18642051,1118.7,1116.7,4.00959]
[1610360936198,57.37472051,1118.7,1116.7,4.00959]
[1610360936598,57.35192853,1118.8,1116.7,4.00959]
[1610360937001,57.32452363,1118.7,1116.7,4.00959]
[1610360937200,59.70362363,1118.7,1116.7,4.00959]
[1610360937401,59.70362363,1118.7,1116.6,2.247]
[1610360937402,2.3791,1118.7,1116.6,2.247]
[1610360938000,2.3791,1118.7,1116.6,3.60535869]
[1610360939001,9.0362,1118.6,1116.7,1.3581731]
[1610360939300,10.8187,1118.6,1117.2,4.00959]
[1610360939900,9.0362,1118.6,1117.2,4.00959]
[1610360941301,4.00959,1118.4,1118.3,4.00959]
[1610360941501,6.43889,1118.4,1118.3,4.00959]
[1610360942001,6.43889,1118.4,1117.2,3.12831368]
[1610360942202,6.43889,1118.4,1117.2,33.12831368]
[1610360942603,6.43889,1118.4,1117.2,31.35751368]
[1610360943004,2.4293,1118.4,1117.2,31.35751368]
[1610360943204,2.4293,1118.4,1117.3,1.35724121]
[1610360943406,2.4293,1118.4,1118.3,4.00959]
[1610360944009,2.4293,1118.4,1117.5,1.35698408]
[1610360944610,2.4293,1118.4,1117.7,1.35672164]
[1610360944810,2.3791,1118.7,1117.7,1.35672164]
[1610360945011,57.48848625,1120.3,1117.9,1.35663224]
[1610360945410,57.49840039,1120.4,1119.3,4.00959]
[1610360945611,57.49840039,1120.4,1118.0,1.35636809]
[1610360945810,8.5456,1119.7,1118.2,1.35633337]
[1610360946010,8.5456,1119.7,1118.1,1.35641292]
[1610360946611,8.5456,1119.7,1118.1,3.14091292]
[1610360946811,8.5456,1119.7,1118.2,30.0]
[1610360947012,8.5456,1119.7,1118.2,31.35630931]
[1610360947411,8.5456,1119.7,1119.3,4.00959]
[1610360947813,8.3267,1119.7,1118.3,31.35631277]
[1610360948013,9.6767,1119.7,1118.3,30.0]
[1610360948210,7.8927,1119.7,1118.3,30.0]
[1610360948511,7.349,1119.7,1118.3,31.35631952]
[1610360948711,6.202,1119.7,1118.3,31.35631952]
[1610360948911,2.4833,1119.7,1118.3,31.35631952]
[1610360949111,2.4833,1119.7,1118.3,1.35631952]
[1610360949320,0.0897,1119.7,1118.4,1.35632984]
[1610360949515,4.00959,1119.2,1118.9,4.00959]
[1610360949912,6.30329,1119.2,1118.9,4.00959]
[1610360950114,6.04049,1119.2,1118.9,4.00959]
[1610360950513,6.04049,1119.2,1118.3,1.35632538]
[1610360951216,6.04049,1119.2,1118.2,1.35643374]
[1610360951415,4.00959,1118.7,1118.5,4.00959]
[1610360951617,6.18799,1118.7,1118.5,4.00959]
[1610360951915,2.1784,1118.7,1118.5,4.00959]
[1610360952417,2.1784,1118.7,1118.2,1.35643374]
[1610360953017,2.1784,1118.7,1117.9,1.35668505]
[1610360953217,2.1784,1118.7,1117.8,1.3568993]
[1610360953417,4.00959,1118.3,1118.0,4.00959]
[1610360953619,5.98659,1118.3,1118.0,4.00959]
[1610360953818,1.977,1118.3,1118.0,4.00959]
[1610360954418,1.977,1118.3,1118.0,34.00959]
[1610360955422,1.977,1118.3,1118.2,4.00959]
[1610360955621,2.1784,1118.7,1118.2,35.82269]
[1610360955822,2.1784,1118.7,1118.2,34.00959]
[1610360956021,2.1784,1118.7,1118.2,35.366071]
[1610360956221,1.6653,1118.7,1118.2,35.366071]
[1610360956423,1.1058,1118.7,1118.2,35.366071]
[1610360956623,6.30329,1119.2,1118.7,0.7799]
[1610360957521,6.30329,1119.2,1119.1,4.00959]
[1610360958123,4.90599,1119.2,1118.7,0.7799]
[1610360958524,0.0897,1119.7,1118.7,0.7799]
[1610360958723,1.5174,1119.2,1118.7,0.7799]
[1610360958923,57.4971553,1120.9,1118.7,0.7799]
[1610360959122,1.7181,1119.4,1118.7,0.7799]
[1610360959323,1.7181,1119.4,1118.9,1.35560051]
[1610360959523,4.00959,1120.7,1119.3,4.00959]
[1610360959724,4.00959,1120.7,1119.4,30.0]
[1610360963324,4.00959,1120.7,1119.3,1.35517482]
[1610360963526,4.00959,1120.1,1120.0,4.00959]
[1610360963726,5.62719,1120.1,1120.0,4.00959]
[1610360963926,5.62719,1120.1,1119.2,1.08429055]
[1610360964327,5.62719,1120.1,1119.1,1.08442884]
[1610360964726,5.62719,1120.1,1119.0,1.08459112]
[1610360964927,5.62719,1120.1,1118.9,1.08467051]
[1610360965326,5.62719,1120.1,1118.7,1.86472122]
[1610360965526,1.6176,1120.1,1119.0,4.00959]
[1610360965728,1.6176,1120.1,1118.7,0.7799]
[1610360967530,4.00959,1118.8,1118.7,4.78949]
[1610360967728,6.45389,1118.8,1118.7,4.78949]
[1610360967928,2.4443,1118.8,1118.7,0.7799]
[1610360969329,2.4443,1118.8,1118.3,1.08510915]
[1610360969529,4.00959,1118.4,1118.3,1.08510915]
[1610360969732,6.30249,1118.4,1118.1,0.99999641]
[1610360969930,6.30249,1118.4,1117.9,1.35674552]
[1610360970131,6.30249,1118.4,1117.5,0.46242885]
[1610360970531,6.30249,1118.4,1117.1,2.1714119]
[1610360970733,8.06559,1118.4,1116.7,2.17222649]
[1610360971033,8.06559,1118.4,1116.5,2.17259087]
[1610360971432,8.06559,1118.4,1116.3,2.17246387]
[1610360971633,4.056,1118.4,1116.9,4.00959]
[1610360972037,4.056,1118.4,1116.2,32.17267076]
[1610360972238,4.056,1118.4,1116.2,2.17267076]
[1610360972438,4.056,1118.4,1116.1,2.17291275]
[1610360972837,4.056,1118.4,1115.4,3.80217383]
[1610360972838,4.056,1118.4,1116.0,2.17325311]
[1610360973038,4.056,1118.4,1115.8,2.17388784]
[1610360973441,4.056,1118.4,1115.7,2.17412247]
[1610360973641,4.00959,1115.9,1115.7,2.17412247]
[1610360974044,4.00959,1115.9,1115.6,2.17430029]
[1610360974440,4.00959,1115.9,1115.5,2.1743439]
[1610360974640,1.6774,1116.1,1115.5,2.1743439]
[1610360974842,3.4632,1116.1,1115.5,2.1743439]
[1610360975041,1.6774,1116.1,1115.5,32.1743439]
[1610360975442,0.8811,1116.1,1115.6,2.17411828]
[1610360975644,2.2929,1118.4,1116.0,4.00959]
[1610360975842,2.2929,1118.4,1116.1,30.0]
[1610360976444,8.1205,1118.3,1116.1,32.17317646]
[1610360976643,61.7971,1117.9,1116.2,2.17315253]
[1610360976843,64.216,1117.9,1116.2,32.17315253]
[1610360977543,4.00959,1117.4,1117.3,4.00959]
[1610360977744,4.00959,1117.4,1116.3,2.17291393]
[1610360977945,6.38489,1117.4,1116.4,30.0]
[1610360978146,2.3753,1117.4,1116.4,30.0]
[1610360978344,2.3753,1117.4,1116.4,32.17287615]
[1610360978945,2.3753,1117.4,1116.5,30.0]
[1610360979546,4.00959,1117.2,1117.0,4.00959]
[1610360979750,4.00959,1117.2,1116.5,30.0]
[1610360979949,2.3753,1117.4,1116.3,2.1729625]
[1610360980649,2.3753,1117.4,1116.2,2.1733164]
[1610360981049,2.3753,1117.4,1116.4,1.35853281]
[1610360981649,4.00959,1116.9,1116.7,4.00959]
[1610360981850,5.54789,1116.9,1116.7,4.00959]
[1610360982050,1.5383,1116.9,1116.7,34.00959]
[1610360982450,2.3753,1117.4,1116.7,34.00959]
[1610360982852,68.4293,1118.4,1116.7,44.69959]
[1610360983052,68.2336,1118.4,1116.7,44.69959]
[1610360983251,70.7154,1118.9,1116.7,44.69959]
[1610360983451,56.76017233,1119.9,1117.4,1.35713343]
[1610360983650,4.00959,1119.0,1117.4,3.47793343]
[1610360983854,5.84259,1119.0,1118.0,1.08559673]
[1610360984052,5.84259,1119.0,1118.2,1.08548425]
[1610360984453,1.833,1119.0,1118.3,1.08536627]
[1610360984853,1.7886,1120.5,1118.4,1.08533044]
[1610360985051,58.79149827,1120.7,1118.4,1.08533044]
[1610360985254,45.31388394,1120.7,1118.4,1.08533044]
[1610360985552,4.00959,1119.4,1119.0,4.00959]
[1610360985755,4.00959,1119.4,1118.5,1.08515296]
[1610360985956,0.72329,1119.5,1118.5,1.08515296]
[1610360987358,0.72329,1119.5,1118.4,1.08516515]
[1610360987556,4.00959,1119.0,1118.5,4.00959]
[1610360987760,0.72329,1119.5,1118.5,4.00959]
[1610360987957,1.9685,1119.1,1118.5,4.00959]
[1610360989158,1.9685,1119.1,1118.5,34.00959]
[1610360989757,1.9685,1119.1,1119.0,4.00959]
[1610360991761,73.8067,1120.5,1119.0,37.67889]
[1610360992162,73.8067,1120.5,1119.2,1.08437505]
[1610360992362,73.8067,1120.5,1119.3,1.08432582]
[1610360992566,73.8067,1120.5,1119.3,3.51662582]
[1610360993163,73.8067,1120.5,1119.3,2.4323]
[1610360993564,73.8067,1120.5,1119.3,3.51670384]
[1610360993763,73.8067,1120.5,1120.1,4.00959]
[1610360993963,73.8067,1120.5,1119.3,3.51670384]
[1610360994165,75.6695,1120.5,1119.3,3.51670384]
[1610360995365,1.8628,1120.5,1119.3,2.4323]
[1610360995764,1.8628,1120.5,1119.7,4.00959]
[1610360997764,1.8628,1120.5,1120.4,4.00959]
[1610360998165,1.8628,1120.5,1119.4,1.08425633]
[1610360998865,1.756,1120.5,1119.4,1.08425633]
[1610360999065,4.00959,1120.7,1120.5,3.1371]
[1610360999267,118.27827561,1121.7,1120.5,3.1371]
[1610360999465,61.6348,1121.7,1120.5,3.1371]
[1610360999665,61.6348,1121.7,1120.9,4.00959]
[1610360999866,61.6348,1121.7,1120.5,3.1371]
[1610361000065,7.6167,1121.0,1120.5,3.1371]
[1610361001665,7.6167,1121.0,1120.8,4.00959]
[1610361002065,7.6167,1121.0,1120.5,3.1371]
[1610361002665,1.6616,1121.0,1120.5,3.1371]
[1610361002867,0.6326,1121.0,1120.5,3.1371]
[1610361003066,1.9151,1121.3,1120.5,3.1371]
[1610361003667,1.9151,1121.3,1121.2,4.00959]
[1610361004665,56.79513294,1122.8,1121.2,4.00959]
[1610361004865,56.81338793,1122.9,1121.2,4.00959]
[1610361005365,43.39302448,1122.9,1121.2,4.00959]
[1610361005565,30.75353254,1123.0,1121.2,4.00959]
[1610361005566,43.43042797,1123.0,1121.2,4.00959]
[1610361005765,43.43042797,1123.0,1122.3,4.00959]
[1610361005965,56.86353188,1123.0,1122.8,3.1371]
[1610361006165,56.86353188,1123.0,1122.3,4.00959]
[1610361006366,43.43042797,1123.0,1120.9,30.0]
[1610361006565,131.49206553,1123.1,1120.8,1.08298253]
[1610361007367,74.5327,1123.1,1120.9,1.08294934]
[1610361007565,74.5327,1123.1,1120.9,2.86104934]
[1610361007766,4.00959,1122.8,1122.3,4.00959]
[1610361007966,5.75959,1122.8,1122.3,4.00959]
[1610361009166,1.75,1122.8,1122.3,4.00959]
[1610361009766,1.75,1122.8,1122.7,4.00959]
[1610361011368,74.2827,1123.1,1122.7,4.00959]
[1610361011568,57.47012788,1124.0,1122.7,4.00959]
[1610361011770,57.55977372,1124.2,1123.7,4.00959]
[1610361011970,13.59667346,1124.2,1122.2,100.012]
[1610361012169,1.9287,1124.2,1122.3,2.3835]
[1610361012369,57.5408002,1124.6,1124.2,3.0712]
[1610361012772,63.163,1124.8,1124.2,3.0712]
[1610361013770,67.17259,1124.8,1124.6,4.00959]
[1610361014173,54.32483053,1125.2,1124.6,4.00959]
[1610361014475,60.48382069,1125.3,1124.6,4.00959]
[1610361014672,54.37032069,1125.3,1124.2,3.0712]
[1610361014873,56.59692069,1125.3,1124.2,3.0712]
[1610361015075,2.2266,1125.3,1124.2,3.0712]
[1610361015774,4.00959,1124.3,1124.2,3.0712]
[1610361016175,1.7814,1124.6,1124.2,3.0712]
[1610361016375,2.2205,1124.3,1124.2,3.0712]
[1610361017777,6.23009,1124.3,1124.2,3.0712]
[1610361017976,4.23009,1124.3,1124.2,3.0712]
[1610361021381,4.23009,1124.3,1123.4,4.00959]
[1610361021781,0.2205,1124.3,1123.4,4.00959]
[1610361021982,1.7814,1124.6,1123.4,4.00959]
[1610361022183,15.89465294,1124.9,1123.4,4.00959]
[1610361022184,70.46439085,1124.9,1123.4,4.00959]
[1610361022385,76.77276396,1125.0,1123.4,4.00959]
[1610361022787,6.2855,1125.0,1123.4,4.00959]
[1610361022985,74.25723101,1125.1,1123.4,4.00959]
[1610361023187,58.3732702,1125.2,1123.4,4.00959]
[1610361023386,58.3732702,1125.2,1123.4,5.78049]
[1610361023586,131.6924702,1125.2,1123.4,5.78049]
[1610361023787,73.3192,1125.2,1124.3,4.00959]
[1610361025689,2.2266,1125.3,1125.1,4.00959]
[1610361025892,74.5272943,1125.8,1125.1,4.00959]
[1610361026092,74.5272943,1125.8,1124.1,1.9968]
[1610361026093,76.3250943,1125.8,1124.1,1.9968]
[1610361026296,78.4779943,1125.8,1123.9,55.2867]
[1610361026493,74.58072875,1125.7,1123.9,55.2867]
[1610361026893,58.6154913,1125.5,1123.9,55.2867]
[1610361027093,60.3831913,1125.5,1123.9,55.2867]
[1610361027293,53.24393554,1125.3,1123.9,55.2867]
[1610361027493,53.31483786,1125.2,1123.9,55.2867]
[1610361027693,53.31483786,1125.2,1124.7,4.00959]
[1610361027894,2.2328,1125.2,1124.7,4.00959]
[1610361028494,2.2328,1125.2,1123.9,55.2867]
[1610361028894,9.33780124,1125.1,1123.9,55.2867]
[1610361029695,9.33780124,1125.1,1125.0,4.00959]
[1610361030296,9.33780124,1125.1,1123.9,55.2867]
[1610361030496,2.2328,1125.2,1123.9,55.2867]
[1610361031799,2.2328,1125.2,1125.1,4.00959]
[1610361032200,2.2328,1125.2,1123.9,55.2867]
[1610361032901,2.2328,1125.2,1124.0,1.0795524]
[1610361033100,1.9868,1125.5,1124.0,1.0795524]
[1610361033301,6.16249,1125.8,1124.0,1.0795524]
[1610361033500,6.16249,1125.8,1124.0,2.8685524]
[1610361033700,6.16249,1125.8,1125.7,4.00959]
[1610361033900,6.16249,1125.8,1124.0,2.8685524]
[1610361034101,6.16249,1125.8,1124.2,1.07919952]
[1610361034900,6.16249,1125.8,1124.3,1.07909618]
[1610361035101,6.16249,1125.8,1124.3,2.87139618]
[1610361035300,6.16249,1125.8,1124.3,1.07909618]
[1610361035902,2.1529,1125.8,1124.3,1.07909618]
[1610361036300,13.6466,1126.1,1124.3,1.07909618]
[1610361036501,11.8692,1126.1,1124.2,1.07923954]
[1610361036809,14.0845,1126.1,1124.0,1.07947576]
[1610361037204,14.0845,1126.1,1124.0,1.7649]
[1610361037407,9.31124698,1126.0,1124.0,1.7649]
[1610361037602,9.31124698,1126.0,1124.0,2.84426178]
[1610361037801,9.31124698,1126.0,1124.0,1.07936178]
[1610361038015,9.31124698,1126.0,1124.2,0.80951184]
[1610361038300,9.31124698,1126.0,1124.1,0.80955413]
[1610361038603,9.31124698,1126.0,1124.0,0.80961977]
[1610361039701,9.31124698,1126.0,1123.9,3.18438124]
[1610361039901,4.00959,1124.5,1123.9,0.80968124]
[1610361040101,5.84219,1124.5,1123.8,0.8097121]
[1610361040301,5.84219,1124.5,1123.7,0.80978067]
[1610361040702,5.84219,1124.5,1123.6,0.80991608]
[1610361041204,1.8326,1124.5,1123.6,0.80991608]
[1610361041604,1.8326,1124.5,1123.7,0.80988281]
[1610361041804,1.8326,1124.5,1124.1,4.00959]
[1610361043806,1.8326,1124.5,1124.4,4.00959]
[1610361044005,1.8326,1124.5,1123.6,0.80995029]
[1610361044707,1.8326,1124.5,1123.7,0.80989733]
[1610361044906,1.8326,1124.5,1123.7,2.57379733]
[1610361045107,1.8326,1124.5,1123.7,0.80989733]
[1610361045305,72.1295,1125.7,1123.7,0.80989733]
[1610361045907,4.00959,1124.6,1124.4,4.00959]
[1610361046108,1.8818,1124.6,1124.4,4.00959]
[1610361047610,1.8818,1124.6,1123.7,0.80989733]
[1610361047810,1.8818,1124.6,1123.6,1.0798631]
[1610361047811,1.8818,1124.6,1124.0,4.00959]
[1610361048312,1.8818,1124.6,1123.6,0.80990273]
[1610361048513,1.8818,1124.6,1123.5,0.81000726]
[1610361049513,1.8818,1124.6,1123.4,0.81005439]
[1610361049913,1.8818,1124.6,1123.5,4.00959]
[1610361051113,1.7995,1124.9,1123.5,4.00959]
[1610361051313,1.7949,1125.2,1123.5,4.00959]
[1610361051515,58.12345049,1125.2,1123.5,4.00959]
[1610361051717,64.39072367,1125.3,1123.5,4.00959]
[1610361051915,4.00959,1124.3,1124.0,4.00959]
[1610361052115,2.1508,1124.3,1124.0,4.00959]
[1610361052817,2.1508,1124.3,1123.3,0.81018303]
[1610361053823,2.1508,1124.3,1124.2,4.00959]
[1610361055422,6.2873,1126.0,1124.2,4.00959]
[1610361055622,2.2153,1126.1,1124.2,4.00959]
[1610361055823,58.23831328,1126.3,1126.0,4.00959]
[1610361056225,74.21809702,1126.7,1126.0,4.00959]
[1610361056624,58.39849661,1126.9,1126.0,4.00959]
[1610361057023,58.42968264,1127.0,1126.0,4.00959]
[1610361057323,76.1277703,1127.1,1126.0,4.00959]
[1610361057524,74.3474703,1127.1,1126.9,0.15]
[1610361057724,74.3474703,1127.1,1124.9,0.80893181]
[1610361057924,4.00959,1125.8,1124.9,0.80893181]
[1610361058125,5.68979,1125.8,1124.7,0.80901749]
[1610361058325,5.68979,1125.8,1124.6,0.80912063]
[1610361058724,1.6802,1125.8,1124.6,1.7518]
[1610361059327,1.6802,1125.8,1124.6,2.56086493]
[1610361059525,1.6802,1125.8,1124.6,0.80906493]
[1610361060525,1.6802,1125.8,1124.5,0.80916773]
[1610361060726,1.6802,1125.8,1124.4,2.31606665]
[1610361061127,1.6802,1125.8,1124.3,2.59176489]
[1610361061328,1.6802,1125.8,1124.3,0.80936489]
[1610361061528,1.6802,1125.8,1124.2,0.80939368]
[1610361061929,4.00959,1125.3,1125.1,4.00959]
[1610361062128,4.00959,1125.3,1124.2,0.80939368]
[1610361062328,5.63779,1125.3,1124.2,0.80939368]
[1610361062528,5.63779,1125.3,1124.1,2.56396151]
[1610361063529,5.63779,1125.3,1124.1,1.7545]
[1610361063829,4.00959,1124.6,1124.5,4.00959]
[1610361064028,4.00959,1124.6,1124.0,69.7786131]
[1610361064232,4.00959,1124.6,1124.0,68.9691]
[1610361064431,6.46349,1124.6,1124.0,68.9691]
[1610361065932,4.00959,1124.1,1124.0,72.97869]
[1610361066132,6.18669,1124.1,1124.0,72.97869]
[1610361066332,6.18669,1124.1,1124.0,68.9691]
[1610361068438,4.18669,1124.1,1124.0,68.9691]
[1610361068638,4.18669,1124.1,1124.0,68.8464]
[1610361068835,4.18669,1124.1,1122.9,0.81028852]
[1610361069037,4.18669,1124.1,1122.7,0.81045599]
[1610361069238,4.18669,1124.1,1122.6,1.08060799]
[1610361069438,4.18669,1124.1,1122.5,0.84784598]
[1610361069663,4.18669,1124.1,1122.4,1.35093248]
[1610361069863,4.00959,1122.5,1121.9,1.62131303]
[1610361070054,4.00959,1122.5,1121.7,1.62143686]
[1610361070448,4.00959,1122.5,1121.9,56.3457]
[1610361071446,2.284,1122.7,1121.9,56.3457]
[1610361071939,6.29359,1122.7,1122.6,4.00959]
[1610361072140,6.29359,1122.7,1121.9,56.3457]
[1610361073741,6.29359,1122.7,1121.3,3.95589803]
[1610361073941,4.00959,1121.7,1121.6,4.00959]
[1610361074141,4.00959,1121.7,1121.3,3.95589803]
[1610361074944,4.00959,1121.7,1121.3,2.3336]
[1610361075342,2.4537,1122.2,1121.3,2.3336]
[1610361075543,2.4537,1122.2,1121.3,32.3336]
[1610361075943,2.284,1122.7,1122.1,4.00959]
[1610361076144,1.7635,1124.0,1122.1,4.00959]
[1610361077143,7.7049,1123.4,1122.1,4.00959]
[1610361077345,5.9319,1123.4,1121.6,3.83570506]
[1610361077543,8.1104,1123.4,1121.6,3.83570506]
[1610361077944,4.00959,1122.6,1122.2,4.00959]
[1610361078145,6.30479,1122.6,1122.2,4.00959]
[1610361078546,6.30479,1122.6,1121.6,3.83570506]
[1610361078746,6.30479,1122.6,1121.6,2.2138]
[1610361078947,6.30479,1122.6,1121.5,1.62198889]
[1610361079548,6.30479,1122.6,1121.8,0.81106365]
[1610361079748,6.30479,1122.6,1121.7,0.81118464]
[1610361079948,4.00959,1121.8,1121.7,0.81118464]
[1610361080149,1.6025,1122.1,1121.7,0.81118464]
[1610361080750,1.6025,1122.1,1121.9,0.8111576]
[1610361080951,1.6025,1122.1,1121.8,0.81119131]
[1610361081452,1.6025,1122.1,1121.7,0.81122235]
[1610361082058,1.6025,1122.1,1121.6,1.08158841]
[1610361082059,1.6025,1122.1,1122.0,4.00959]
[1610361082956,1.6025,1122.1,1121.8,0.81114842]
[1610361083755,1.6025,1122.1,1121.6,0.8111857]
[1610361083955,4.00959,1121.7,1121.6,0.8111857]
[1610361085058,4.00959,1121.7,1121.5,0.81123787]
[1610361086056,4.00959,1121.7,1121.4,1.0816505]
[1610361086057,4.00959,1121.7,1121.2,0.81142039]
[1610361086457,4.00959,1121.7,1121.1,0.81150195]
[1610361086657,4.00959,1121.7,1120.9,0.81159947]
[1610361087058,63.49599,1121.7,1120.7,0.81182017]
[1610361087258,63.49599,1121.7,1120.5,0.81183635]
[1610361087859,63.49599,1121.7,1120.5,1.08241795]
[1610361088058,4.00959,1120.6,1120.5,1.08241795]
[1610361088259,6.46099,1120.6,1120.4,1.08244415]
[1610361088657,6.46099,1120.6,1120.4,0.48444415]
[1610361088858,6.46099,1120.6,1120.2,1.35315604]
[1610361089660,6.46099,1120.6,1120.1,1.35331145]
[1610361089861,6.46099,1120.6,1120.0,1.35341109]
[1610361090060,4.00959,1120.1,1120.0,1.35341109]
[1610361090262,6.27089,1120.1,1119.9,1.353455]
[1610361091062,2.2613,1120.1,1119.9,1.353455]
[1610361092162,4.00959,1120.0,1119.9,1.353455]
[1610361092964,4.00959,1120.0,1119.8,1.35362103]
[1610361093764,2.2613,1120.1,1119.8,1.35362103]
[1610361093965,2.2613,1120.1,1120.0,4.00959]
[1610361094567,2.2613,1120.1,1120.0,5.36310269]
[1610361094966,2.4514,1120.6,1120.0,5.36310269]
[1610361095166,57.9551,1121.3,1120.1,1.35342341]
[1610361095368,57.9551,1121.3,1120.4,1.35330863]
[1610361095767,57.9551,1121.3,1120.5,1.35315088]
[1610361095966,57.9551,1121.3,1121.2,4.00959]
[1610361096167,57.9551,1121.3,1121.2,6.16079]
[1610361096569,57.9551,1121.3,1121.2,2.1512]
[1610361097170,57.9551,1121.3,1120.9,3.37955674]
[1610361097171,57.9551,1121.3,1120.9,2.027]
[1610361097572,57.9551,1121.3,1120.9,2.83866961]
[1610361097772,57.9551,1121.3,1120.9,2.027]
[1610361097973,57.9551,1121.3,1121.2,4.00959]
[1610361098173,1.6989,1121.7,1121.2,4.00959]
[1610361098773,1.6989,1121.7,1121.2,4.82112437]
[1610361099171,1.6989,1121.7,1121.3,0.81145523]
[1610361099975,4.00959,1121.9,1121.3,0.81145523]
[1610361100376,4.00959,1121.9,1121.4,0.81143458]
[1610361100576,6.3339,1122.9,1121.4,0.81143458]
[1610361101480,6.3339,1122.9,1121.3,0.81146062]
[1610361101679,8.2718,1122.6,1121.2,1.08205522]
[1610361101880,8.2718,1122.6,1121.1,0.81160303]
[1610361102082,4.00959,1121.2,1121.0,4.82120172]
[1610361102482,4.00959,1121.2,1120.9,0.81169046]
[1610361102883,4.00959,1121.2,1120.8,57.63103265]
[1610361103087,4.00959,1121.2,1120.8,56.8193]
[1610361103282,4.00959,1121.2,1120.6,0.81187638]
[1610361103482,4.00959,1121.2,1120.5,0.81192535]
[1610361103685,4.00959,1121.2,1120.5,0.40112535]
[1610361103885,4.00959,1121.2,1120.3,0.62856742]
[1610361104082,4.00959,1120.4,1119.8,57.9449397]
[1610361104282,5.57989,1120.4,1119.8,57.9449397]
[1610361104484,5.57989,1120.4,1119.8,56.5913]
[1610361106082,4.00959,1119.9,1119.8,56.5913]
[1610361106284,6.49349,1119.9,1119.8,56.5913]
[1610361107885,6.49349,1119.9,1119.2,1.35460612]
[1610361108084,4.00959,1119.3,1119.2,1.35460612]
[1610361108286,4.00959,1119.3,1118.9,1.35477764]
[1610361108287,5.55379,1119.3,1118.9,1.35477764]
[1610361108985,5.55379,1119.3,1119.0,1.35482637]
[1610361110086,1.5442,1119.3,1119.2,4.00959]
[1610361110287,1.5442,1119.3,1119.0,1.35482637]
[1610361110487,1.5442,1119.3,1119.1,1.35472285]
[1610361110688,1.5442,1119.3,1119.2,1.35465883]
[1610361111188,1.5442,1119.3,1119.1,1.35469306]
[1610361111387,1.5442,1119.3,1119.2,1.35469238]
[1610361111987,1.5442,1119.3,1119.1,1.35469734]
[1610361112187,5.55379,1119.3,1119.1,1.35469734]
[1610361112788,5.55379,1119.3,1119.0,1.35477839]
[1610361113787,5.55379,1119.3,1119.2,0.81295403]
[1610361114188,5.55379,1119.3,1119.1,0.81301563]
[1610361115191,5.55379,1119.3,1118.9,0.81307289]
[1610361115390,1.5442,1119.3,1118.9,0.81307289]
[1610361115591,1.9527,1119.4,1119.1,0.81301566]
[1610361115990,1.9527,1119.4,1119.2,1.08389158]
[1610361116193,1.9527,1119.4,1119.3,5.36415431]
[1610361116389,1.9527,1119.4,1119.3,1.35456431]
[1610361116590,1.5703,1120.4,1119.3,1.08383748]
[1610361116991,5.8111,1120.6,1119.3,0.81286829]
[1610361118191,4.00959,1119.6,1119.4,4.82237653]
[1610361118591,4.00959,1119.6,1119.3,0.81283392]
[1610361119193,4.00959,1119.6,1119.2,0.81297056]
[1610361119493,4.00959,1119.6,1119.0,1.08396074]
[1610361119494,4.00959,1119.6,1119.0,0.81305133]
[1610361119898,4.00959,1119.6,1118.9,57.78043528]
[1610361120094,4.00959,1119.0,1118.9,57.78043528]
[1610361120298,4.00959,1119.0,1118.9,56.9673]
[1610361121795,4.00959,1119.0,1118.9,48.8687]
[1610361121995,4.00959,1119.0,1118.8,0.8131965]
[1610361122196,4.00959,1119.0,1118.3,1.62648437]
[1610361122197,4.00959,1119.0,1118.5,1.35537752]
[1610361122596,4.00959,1119.0,1118.5,0.84547752]
[1610361122796,6.42159,1119.0,1118.5,0.03677752]
[1610361123197,2.412,1119.0,1118.0,5.63646262]
[1610361123396,2.412,1119.0,1118.1,1.62684785]
[1610361123797,2.412,1119.0,1118.2,1.62661198]
[1610361123998,1.8134,1119.4,1118.5,1.62637269]
[1610361124196,4.00959,1118.8,1118.7,4.00959]
[1610361124800,4.00959,1118.8,1118.4,1.62627517]
[1610361124999,4.00959,1118.8,1118.3,1.62658161]
[1610361125400,1.6152,1119.1,1118.2,1.62660686]
[1610361126200,4.00959,1118.8,1118.4,4.00959]
[1610361126603,4.00959,1118.8,1118.2,1.62660686]
[1610361126801,6.24159,1118.8,1118.1,1.62682396]
[1610361127003,6.24159,1118.8,1118.0,1.62688617]
[1610361127200,2.232,1118.8,1118.0,1.62688617]
[1610361127401,2.232,1118.8,1118.1,1.6268962]
[1610361128003,2.232,1118.8,1118.0,1.62686222]
[1610361128202,2.232,1118.8,1118.1,4.00959]
[1610361129002,2.232,1118.8,1118.1,5.63651892]
[1610361129402,2.232,1118.8,1118.1,4.00959]
[1610361130204,4.00959,1118.2,1118.1,4.00959]
[1610361132813,4.00959,1118.2,1117.9,1.62708435]
[1610361133013,4.00959,1118.2,1118.1,1.35607067]
[1610361133413,4.00959,1118.2,1118.0,1.08486624]
[1610361133613,6.06649,1118.2,1117.9,0.37824726]
[1610361133816,6.06649,1118.2,1117.6,0.17721193]
[1610361134013,6.06649,1118.2,1117.5,62.9431]
[1610361134213,4.00959,1117.6,1117.3,1.6278712]
[1610361134412,4.00959,1117.6,1116.9,2.1707233]
[1610361134812,4.00959,1117.6,1116.8,61.02831242]
[1610361135012,5.54379,1117.6,1116.8,61.02831242]
[1610361135213,5.54379,1117.6,1116.8,58.8573]
[1610361135613,5.54379,1117.6,1116.8,58.6573]
[1610361135816,5.54379,1117.6,1116.4,2.171788]
[1610361136214,1.5342,1117.6,1116.4,2.171788]
[1610361136614,1.5342,1117.6,1116.3,4.00959]
[1610361136615,1.5342,1117.6,1116.5,2.17191561]
[1610361137015,1.5342,1117.6,1116.3,4.00959]
[1610361137016,1.5342,1117.6,1116.6,2.17165886]
[1610361137717,1.5342,1117.6,1116.7,2.17178072]
[1610361138117,1.5342,1117.6,1116.5,2.17182648]
[1610361138317,1.5342,1117.6,1116.7,4.00959]